bitfinex-derivatives/quotes_BTCF0:USTF0_20250508
["timestamp","ask_amount","ask_price","bid_price","bid_amount"]
[1746741930516,0.3057,102770.0,102760.0,0.1946185]
[1746741930815,0.0003,102780.0,102770.0,0.1945995]
[1746741931017,0.001,102790.0,102780.0,0.1945806]
[1746741931217,0.151,102790.0,102780.0,0.82172054]
[1746741931422,0.1955617,102790.0,102780.0,0.56940054]
[1746741931622,0.2782,102790.0,102780.0,1.03856054]
[1746741931823,0.4627617,102790.0,102780.0,0.20182054]
[1746741932028,0.4627617,102790.0,102780.0,0.11559994]
[1746741932327,0.6307617,102790.0,102780.0,0.11559994]
[1746741932523,0.6347617,102790.0,102780.0,0.11559994]
[1746741932724,0.6347617,102790.0,102780.0,0.00723994]
[1746741932725,1.39419169,102790.0,102780.0,0.00723994]
[1746741932924,0.1945995,102770.0,102760.0,0.7134273]
[1746741933122,0.13,102770.0,102760.0,0.7134273]
[1746741933432,0.6171,102780.0,102770.0,0.1945995]
[1746741933729,0.2491,102780.0,102770.0,0.1945995]
[1746741934030,0.7471,102780.0,102770.0,0.1945995]
[1746741934224,0.9151,102780.0,102770.0,0.20192123]
[1746741935119,1.1096806,102780.0,102770.0,0.00732173]
[1746741935432,0.1945995,102770.0,102760.0,0.2949124]
[1746741935730,0.2714,102770.0,102760.0,0.4011924]
[1746741936332,0.2714,102770.0,102760.0,0.7609924]
[1746741936526,0.2714,102770.0,102760.0,1.0188924]
[1746741936929,0.2744,102770.0,102760.0,1.0188924]
[1746741937230,0.2764,102770.0,102760.0,1.0188924]
[1746741938932,0.2764,102770.0,102760.0,1.02608823]
[1746741941436,0.4709995,102770.0,102760.0,0.29910823]
[1746741941733,0.4709995,102770.0,102760.0,0.40722823]
[1746741941927,0.2764,102770.0,102760.0,0.40722823]
[1746741942127,0.6389995,102770.0,102760.0,0.29910823]
[1746741942327,0.9897995,102770.0,102760.0,0.30987983]
[1746741942528,1.39844549,102770.0,102760.0,0.00719583]
[1746741942824,1.39844549,102770.0,102750.0,0.40293707]
[1746741942825,0.1946185,102760.0,102750.0,0.40293707]
[1746741943034,0.5966185,102760.0,102750.0,0.40293707]
[1746741943225,1.1254185,102760.0,102750.0,0.40293707]
[1746741943734,1.1254185,102760.0,102750.0,0.30223106]
[1746741943932,1.1254185,102760.0,102750.0,0.41027106]
[1746741944437,1.1254185,102760.0,102750.0,0.11833356]
[1746741944733,1.1254185,102760.0,102750.0,0.31297096]
[1746741945127,1.1264185,102760.0,102750.0,0.31297096]
[1746741945533,1.1254185,102760.0,102750.0,0.31297096]
[1746741945733,1.1284185,102760.0,102750.0,0.31297096]
[1746741945933,1.1304185,102760.0,102750.0,0.31297096]
[1746741946835,1.1304185,102760.0,102750.0,0.20493096]
[1746741947437,1.2696185,102760.0,102750.0,0.20493096]
[1746741948134,0.9088185,102760.0,102750.0,0.20493096]
[1746741948334,1.2696185,102760.0,102750.0,0.01029356]
[1746741948528,1.28516926,102760.0,102750.0,0.00291957]
[1746741948729,1.52634614,102760.0,102750.0,7e-08]
[1746741948930,1.64634614,102760.0,102750.0,7e-08]
[1746741949129,1.90482614,102760.0,102750.0,7e-08]
[1746741949631,1.65482614,102760.0,102750.0,7e-08]
[1746741950832,1.39634614,102760.0,102750.0,0.19463747]
[1746741951037,1.53634614,102760.0,102750.0,0.19463747]
[1746741951733,1.39079538,102760.0,102750.0,0.19463747]
[1746741952738,1.59186134,102760.0,102750.0,7e-08]
[1746741953633,1.30347538,102760.0,102750.0,0.19463747]
[1746741953837,1.49454134,102760.0,102750.0,7e-08]
[1746741954930,1.59186134,102760.0,102750.0,7e-08]
[1746741957227,1.59186134,102760.0,102750.0,0.19463747]
[1746741957841,1.49454134,102760.0,102750.0,0.19463747]
[1746741958543,1.30347538,102760.0,102750.0,0.19463747]
[1746741959345,0.9288185,102760.0,102750.0,0.19463747]
[1746741959537,0.6568185,102760.0,102750.0,0.45393747]
[1746741959843,0.7867185,102760.0,102750.0,0.45393747]
[1746741960241,0.6187185,102760.0,102750.0,0.45393747]
[1746741960641,0.6187185,102760.0,102750.0,0.56157747]
[1746741960842,0.4888185,102760.0,102750.0,0.56157747]
[1746741961341,0.6187185,102760.0,102750.0,0.56157747]
[1746741962649,0.9795185,102760.0,102750.0,0.56157747]
[1746741963147,1.15058446,102760.0,102750.0,7e-08]
[1746741963346,1.27808446,102760.0,102750.0,7e-08]
[1746741963847,1.29808446,102760.0,102750.0,7e-08]
[1746741964248,1.46608446,102760.0,102750.0,7e-08]
[1746741964840,1.46608446,102760.0,102750.0,0.19463747]
[1746741965643,0.9304,102760.0,102750.0,0.19463747]
[1746741965843,0.823,102760.0,102750.0,0.58473747]
[1746741966045,0.4622,102760.0,102750.0,0.58473747]
[1746741966248,0.8496185,102760.0,102750.0,0.58473747]
[1746741966844,0.655,102760.0,102750.0,0.58473747]
[1746741967039,0.8496185,102760.0,102750.0,0.58473747]
[1746741967240,0.2942,102760.0,102750.0,0.58473747]
[1746741967440,0.4888185,102760.0,102750.0,0.58473747]
[1746741969136,0.4888185,102760.0,102750.0,0.94553747]
[1746741970444,0.4888185,102760.0,102750.0,0.58473747]
[1746741970640,0.005,102760.0,102750.0,0.94553747]
[1746741970842,0.145,102760.0,102750.0,0.94553747]
[1746741971448,0.135,102760.0,102750.0,1.24432343]
[1746741971748,0.125,102760.0,102750.0,1.99164342]
[1746741971951,0.123,102760.0,102750.0,1.99164342]
[1746741972142,0.12,102760.0,102750.0,1.99164342]
[1746741972343,0.121,102760.0,102750.0,3.49164342]
[1746741973348,0.12,102760.0,102750.0,3.49364342]
[1746741973849,0.12,102760.0,102750.0,3.49664342]
[1746741974249,0.12,102760.0,102750.0,3.24664342]
[1746741975248,0.12,102760.0,102750.0,2.28080343]
[1746741975550,0.4845185,102760.0,102750.0,0.50230007]
[1746741975844,0.1946753,102730.0,102720.0,0.01111177]
[1746741976051,0.3446753,102730.0,102720.0,0.33920607]
[1746741976242,0.4204,102730.0,102720.0,0.47400607]
[1746741976442,0.13,102730.0,102720.0,0.83480607]
[1746741976643,0.13,102730.0,102720.0,0.47400607]
[1746741976852,0.13,102730.0,102720.0,0.83480607]
[1746741977048,0.13,102730.0,102720.0,0.47400607]
[1746741977249,0.13,102730.0,102720.0,0.94192607]
[1746741977849,0.6295,102740.0,102730.0,0.1946753]
[1746741977850,0.1399,102740.0,102730.0,0.1946753]
[1746741978051,0.1399,102740.0,102730.0,0.6002753]
[1746741978052,0.2599,102740.0,102730.0,0.6002753]
[1746741978351,0.2599,102740.0,102730.0,0.7073553]
[1746741979140,0.2599,102740.0,102730.0,0.7083553]
[1746741979950,0.2599,102740.0,102730.0,0.7103553]
[1746741981049,0.2599,102740.0,102730.0,0.6032753]
[1746741981253,0.2599,102740.0,102730.0,0.7102753]
[1746741981453,0.26233,102740.0,102730.0,0.7102753]
[1746741981955,0.15243,102740.0,102730.0,1.26214126]
[1746741982154,0.15243,102740.0,102730.0,1.33214126]
[1746741982654,0.15243,102740.0,102730.0,1.1410753]
[1746741983050,0.29083,102740.0,102730.0,1.1410753]
[1746741984354,0.27083,102740.0,102730.0,1.0710753]
[1746741984747,0.40143,102740.0,102730.0,1.0710753]
[1746741985157,0.40143,102740.0,102730.0,1.0709953]
[1746741985548,0.00243,102740.0,102730.0,1.26206126]
[1746741985752,0.14243,102740.0,102730.0,1.49206126]
[1746741986453,0.14243,102740.0,102730.0,1.58939726]
[1746741987259,0.14243,102740.0,102730.0,3.08939726]
[1746741988047,0.14243,102740.0,102730.0,2.88514126]
[1746741988260,0.1970864,102740.0,102730.0,1.1008753]
[1746741988452,0.26043,102740.0,102730.0,1.0708753]
[1746741988652,0.39333,102740.0,102730.0,1.0708753]
[1746741988855,0.39333,102740.0,102730.0,0.9640753]
[1746741989259,0.39333,102740.0,102730.0,1.0708753]
[1746741989459,0.28533,102740.0,102730.0,1.1608753]
[1746741989649,0.28533,102740.0,102730.0,1.35194126]
[1746741990157,0.28833,102740.0,102730.0,1.34994126]
[1746741990453,0.28833,102740.0,102730.0,1.55994126]
[1746741990860,0.28533,102740.0,102730.0,1.3688753]
[1746741991062,0.28533,102740.0,102730.0,0.8132753]
[1746741991358,0.6021864,102740.0,102730.0,0.4429953]
[1746741991759,0.6051864,102740.0,102730.0,0.4419953]
[1746741992056,0.6051864,102740.0,102730.0,0.1966753]
[1746741992358,1.1139864,102740.0,102730.0,0.3013553]
[1746741993260,1.1169864,102740.0,102730.0,0.3013553]
[1746741993658,0.1946753,102730.0,102720.0,0.01111177]
[1746741993962,0.1946753,102730.0,102700.0,0.49831345]
[1746741993963,0.1947132,102710.0,102700.0,0.49831345]
[1746741994162,1.05457916,102710.0,102700.0,0.19694125]
[1746741994463,1.67204716,102710.0,102700.0,0.19694125]
[1746741994660,0.1947322,102700.0,102690.0,0.19791505]
[1746741994862,0.9671322,102700.0,102690.0,0.39266615]
[1746741995158,0.9404,102700.0,102690.0,0.39266615]
[1746741995459,0.5596,102700.0,102690.0,0.39266615]
[1746741996349,0.5616,102700.0,102690.0,0.39989535]
[1746741997057,0.9224,102700.0,102690.0,0.39989535]
[1746741997761,1.1171322,102700.0,102690.0,0.39989535]
[1746741997963,1.30819816,102700.0,102690.0,0.19791505]
[1746741998165,1.40557416,102700.0,102690.0,0.19791505]
[1746741998459,1.30819816,102700.0,102690.0,0.1957249]
[1746741999663,1.30819816,102700.0,102690.0,0.0009738]
[1746741999664,1.40557416,102700.0,102690.0,0.0009738]
[1746741999860,0.1947511,102690.0,102680.0,0.00292156]
[1746742000162,0.1947891,102670.0,102660.0,0.45567483]
[1746742000363,0.6855891,102670.0,102660.0,0.45567483]
[1746742000563,1.0883891,102670.0,102660.0,0.45567483]
[1746742001269,1.2563891,102670.0,102660.0,0.45567483]
[1746742001864,1.2573891,102670.0,102660.0,0.46167483]
[1746742002063,1.0893891,102670.0,102660.0,0.46167483]
[1746742002465,1.0903891,102670.0,102660.0,0.36219483]
[1746742002765,1.0903891,102670.0,102660.0,0.46859483]
[1746742003563,0.8956,102670.0,102660.0,0.46859483]
[1746742003766,1.0903891,102670.0,102660.0,0.46859483]
[1746742003967,1.0903891,102670.0,102660.0,0.73609483]
[1746742004567,0.8956,102670.0,102660.0,0.73609483]
[1746742004758,0.2831,102670.0,102660.0,1.28796079]
[1746742004959,0.152,102670.0,102660.0,1.28796079]
[1746742005364,0.152,102670.0,102660.0,1.38536479]
[1746742005562,0.152,102670.0,102660.0,1.50796079]
[1746742005763,0.152,102670.0,102660.0,1.85536479]
[1746742006064,0.152,102670.0,102660.0,1.66429883]
[1746742006373,0.152,102670.0,102660.0,1.60536479]
[1746742006565,0.152,102670.0,102660.0,1.50796079]
[1746742006974,0.152,102670.0,102660.0,1.60536479]
[1746742008672,0.152,102670.0,102660.0,1.41429883]
[1746742008862,0.1967891,102670.0,102660.0,0.69676583]
[1746742009062,0.2892,102670.0,102660.0,0.69676583]
[1746742009267,0.4175,102670.0,102660.0,1.05756583]
[1746742009962,0.2803,102670.0,102660.0,1.24863179]
[1746742010269,0.132,102670.0,102660.0,1.24863179]
[1746742010463,0.002,102670.0,102660.0,1.24863179]
[1746742010664,0.002,102670.0,102660.0,1.55603579]
[1746742010665,0.152,102670.0,102660.0,1.55603579]
[1746742011470,0.002,102670.0,102660.0,1.39756583]
[1746742011676,0.152,102670.0,102660.0,1.05756583]
[1746742011869,0.142,102670.0,102660.0,1.05756583]
[1746742012169,0.002,102670.0,102660.0,1.24863179]
[1746742012378,0.152,102670.0,102660.0,1.37863179]
[1746742013671,0.152,102670.0,102660.0,1.16547179]
[1746742013977,0.152,102670.0,102660.0,1.27239179]
[1746742014170,0.2859,102670.0,102660.0,1.37847179]
[1746742014489,0.2859,102670.0,102660.0,1.18740583]
[1746742014776,0.2859,102670.0,102660.0,1.06740583]
[1746742014777,0.2659,102670.0,102660.0,1.06740583]
[1746742014970,0.3943,102670.0,102660.0,0.70660583]
[1746742015164,0.5890891,102670.0,102660.0,0.56800583]
[1746742015370,0.5338,102670.0,102660.0,0.56800583]
[1746742015679,0.5338,102670.0,102660.0,0.92880583]
[1746742015867,0.5338,102670.0,102660.0,1.06150583]
[1746742016572,0.2759,102670.0,102660.0,1.25257179]
[1746742016772,0.2759,102670.0,102660.0,1.29257179]
[1746742017176,0.2759,102670.0,102660.0,1.25257179]
[1746742017980,0.142,102670.0,102660.0,1.57257179]
[1746742019472,0.142,102670.0,102660.0,1.38150583]
[1746742019672,0.142,102670.0,102660.0,0.86070583]
[1746742019673,0.152,102670.0,102660.0,0.86070583]
[1746742019879,0.122,102670.0,102660.0,0.84850583]
[1746742020081,0.39,102670.0,102660.0,1.06042583]
[1746742020475,0.42,102670.0,102660.0,0.82180583]
[1746742020681,0.7534891,102670.0,102660.0,0.46092583]
[1746742020874,1.1042891,102670.0,102660.0,0.12717773]
[1746742021075,1.27535506,102670.0,102660.0,0.01397408]
[1746742021385,1.46335506,102670.0,102660.0,0.01397408]
[1746742021682,1.2722891,102670.0,102660.0,0.01397408]
[1746742021883,1.46335506,102670.0,102660.0,0.01397408]
[1746742022474,1.81075906,102670.0,102660.0,0.01397408]
[1746742022675,1.56075906,102670.0,102660.0,0.01397408]
[1746742023073,1.56075906,102670.0,102660.0,0.01197408]
[1746742023383,1.56075906,102670.0,102660.0,0.20678218]
[1746742023686,1.55975906,102670.0,102660.0,0.00697408]
[1746742023879,1.57249809,102670.0,102660.0,0.00397408]
[1746742024184,1.57249809,102670.0,102660.0,0.00797408]
[1746742024479,1.55975906,102670.0,102660.0,0.19878218]
[1746742024676,1.55875906,102670.0,102660.0,0.20078218]
[1746742024875,1.55875906,102670.0,102660.0,0.00597408]
[1746742025477,1.55875906,102670.0,102660.0,0.20078218]
[1746742026084,1.57145516,102670.0,102660.0,0.20078218]
[1746742026480,1.47405116,102670.0,102660.0,0.20078218]
[1746742026795,1.3803892,102670.0,102660.0,0.20078218]
[1746742027085,1.57145516,102670.0,102660.0,0.20078218]
[1746742027292,1.2702891,102670.0,102660.0,0.20078218]
[1746742027586,1.0755,102670.0,102660.0,0.20078218]
[1746742027788,1.2702891,102670.0,102660.0,0.46988218]
[1746742027978,1.46135506,102670.0,102660.0,0.20078218]
[1746742028180,1.1022891,102670.0,102660.0,0.20078218]
[1746742028790,1.11501769,102670.0,102660.0,0.20078218]
[1746742029176,1.28301769,102670.0,102660.0,0.20078218]
[1746742029677,1.42885879,102670.0,102660.0,0.00597408]
[1746742029882,1.42885879,102670.0,102660.0,0.20078218]
[1746742030987,1.42885879,102670.0,102660.0,0.00597408]
[1746742031187,1.52626279,102670.0,102660.0,0.00597408]
[1746742033284,1.52626279,102670.0,102650.0,0.19774955]
[1746742033285,0.1948081,102660.0,102650.0,0.19774955]
[1746742033485,1.0997492,102660.0,102650.0,0.00292255]
[1746742033687,1.0997492,102660.0,102650.0,0.19774955]
[1746742034097,1.2677492,102660.0,102650.0,0.19774955]
[1746742034694,1.2687492,102660.0,102650.0,0.20274955]
[1746742034893,1.2697492,102660.0,102650.0,0.20774955]
[1746742036294,1.1239081,102660.0,102650.0,0.20774955]
[1746742039093,0.9559081,102660.0,102650.0,0.46964955]
[1746742040292,0.9859081,102660.0,102650.0,0.33754955]
[1746742040486,0.9859081,102660.0,102650.0,0.61549065]
[1746742040487,0.6307,102660.0,102650.0,0.61549065]
[1746742040692,0.6307,102660.0,102650.0,0.75559065]
[1746742041091,0.8255081,102660.0,102650.0,0.60974955]
[1746742041292,0.6307,102660.0,102650.0,0.60974955]
[1746742041692,0.8245081,102660.0,102650.0,0.59974955]
[1746742041888,0.8255081,102660.0,102650.0,0.59974955]
[1746742042903,0.8255081,102660.0,102650.0,0.40492255]
[1746742043095,0.8353081,102660.0,102650.0,0.10820255]
[1746742043401,0.9753081,102660.0,102650.0,0.10820255]
[1746742043797,0.9753081,102660.0,102650.0,0.30302955]
[1746742044101,0.9753081,102660.0,102650.0,0.37880255]
[1746742044696,0.9753081,102660.0,102650.0,0.32744955]
[1746742044896,0.9753081,102660.0,102650.0,0.30298955]
[1746742045997,0.9753081,102660.0,102650.0,0.57358955]
[1746742046906,0.9753081,102660.0,102650.0,0.30298955]
[1746742047401,0.9753081,102660.0,102650.0,0.57438955]
[1746742049096,1.1211492,102660.0,102650.0,0.32844955]
[1746742049302,0.9753081,102660.0,102650.0,0.19774955]
[1746742049697,0.9753081,102660.0,102650.0,0.46914955]
[1746742052700,1.1211492,102660.0,102650.0,0.19774955]
[1746742054394,1.1211492,102660.0,102650.0,0.46354955]
[1746742054807,1.1235792,102660.0,102650.0,0.46354955]
[1746742055011,1.1235792,102660.0,102650.0,0.00292255]
[1746742055311,1.1235792,102660.0,102650.0,0.19774955]
[1746742055811,1.1235792,102660.0,102650.0,0.00292255]
[1746742056006,1.22444642,102660.0,102650.0,0.00292255]
[1746742056210,1.25444642,102660.0,102650.0,0.00292255]
[1746742056703,1.23444642,102660.0,102650.0,0.00292255]
[1746742057110,1.40244642,102660.0,102650.0,0.00292255]
[1746742057707,1.40244642,102660.0,102630.0,0.00097436]
[1746742057708,0.194846,102640.0,102630.0,0.00097436]
[1746742057906,1.2022871,102640.0,102630.0,0.00097436]
[1746742058107,1.5586191,102640.0,102630.0,0.00097436]
[1746742058311,1.7266191,102640.0,102630.0,0.00097436]
[1746742058512,1.73953692,102640.0,102630.0,0.00097436]
[1746742059013,1.73953692,102640.0,102620.0,0.1948813]
[1746742059014,0.194884,102620.0,102610.0,0.00292355]
[1746742059312,1.204484,102620.0,102610.0,0.00292355]
[1746742059519,1.482284,102620.0,102610.0,0.19782655]
[1746742060104,1.314284,102620.0,102610.0,0.19782655]
[1746742061912,1.316284,102620.0,102610.0,0.47832655]
[1746742063020,1.316284,102620.0,102610.0,0.20582655]
[1746742063518,1.316284,102620.0,102610.0,0.34212655]
[1746742063904,1.316284,102620.0,102610.0,0.48122655]
[1746742064209,0.2606,102620.0,102610.0,0.62112655]
[1746742064408,0.2606,102620.0,102610.0,0.98192655]
[1746742064715,0.2606,102620.0,102610.0,1.12776765]
[1746742065504,0.122,102620.0,102610.0,1.12776765]
[1746742065914,0.122,102620.0,102610.0,0.98192655]
[1746742066105,0.346884,102620.0,102610.0,0.62112655]
[1746742066409,0.605084,102620.0,102610.0,0.72580655]
[1746742066809,0.2809,102620.0,102610.0,0.87164765]
[1746742067028,0.152,102620.0,102610.0,0.87164765]
[1746742067207,0.152,102620.0,102610.0,1.23244765]
[1746742070208,0.152,102620.0,102610.0,0.87187879]
[1746742070410,0.2818,102620.0,102610.0,0.78725469]
[1746742070609,0.2818,102620.0,102610.0,0.42645469]
[1746742070610,0.687484,102620.0,102610.0,0.42645469]
[1746742070809,0.446684,102620.0,102610.0,0.72591769]
[1746742071016,0.939384,102620.0,102610.0,0.62135769]
[1746742071317,1.2267251,102620.0,102610.0,0.01115469]
[1746742071515,1.080884,102620.0,102610.0,0.01115469]
[1746742071716,1.2267251,102620.0,102610.0,0.01115469]
[1746742072020,1.080884,102620.0,102610.0,0.20605769]
[1746742072408,1.080884,102620.0,102610.0,0.47265769]
[1746742072609,0.578584,102620.0,102610.0,0.47265769]
[1746742072805,0.578584,102620.0,102610.0,0.61575769]
[1746742074822,0.2518,102620.0,102610.0,0.61575769]
[1746742075213,0.2618,102620.0,102610.0,0.76159879]
[1746742075411,0.2618,102620.0,102610.0,0.61575769]
[1746742076718,0.152,102620.0,102610.0,1.12239879]
[1746742076913,0.142,102620.0,102610.0,1.12239879]
[1746742078623,0.142,102620.0,102610.0,0.97655769]
[1746742078818,0.142,102620.0,102610.0,1.12239879]
[1746742080322,0.122,102620.0,102610.0,0.61575769]
[1746742080517,0.2542,102620.0,102610.0,0.97655769]
[1746742081320,0.809884,102620.0,102610.0,0.72003769]
[1746742081524,0.951884,102620.0,102610.0,0.57693769]
[1746742081921,0.591084,102620.0,102610.0,0.57693769]
[1746742082422,0.2542,102620.0,102610.0,0.57689769]
[1746742082625,0.2542,102620.0,102610.0,0.93769769]
[1746742082825,0.2542,102620.0,102610.0,1.08353879]
[1746742083026,0.122,102620.0,102610.0,1.08353879]
[1746742085130,0.122,102620.0,102610.0,0.72273879]
[1746742085319,0.2626,102620.0,102610.0,0.72273879]
[1746742086029,0.2626,102620.0,102610.0,0.57689769]
[1746742086328,0.2626,102620.0,102610.0,0.93769769]
[1746742086822,0.2626,102620.0,102610.0,0.93757769]
[1746742089123,0.2626,102620.0,102610.0,1.08341879]
[1746742090520,0.3922,102620.0,102610.0,1.08341879]
[1746742091025,0.3922,102620.0,102610.0,0.97929879]
[1746742091232,0.3922,102620.0,102610.0,1.18761879]
[1746742091936,0.597084,102620.0,102610.0,0.77513769]
[1746742092134,0.730484,102620.0,102610.0,0.67081769]
[1746742092335,0.730484,102620.0,102610.0,0.58421769]
[1746742092632,0.730484,102620.0,102610.0,0.84105769]
[1746742092825,0.5356,102620.0,102610.0,0.94501769]
[1746742093437,0.5356,102620.0,102610.0,0.58421769]
[1746742093629,0.5356,102620.0,102610.0,0.94501769]
[1746742096436,0.730484,102620.0,102610.0,0.58421769]
[1746742096640,0.5356,102620.0,102610.0,0.58421769]
[1746742097234,0.730484,102620.0,102610.0,0.58421769]
[1746742097436,0.730484,102620.0,102610.0,0.94501769]
[1746742097738,0.5356,102620.0,102610.0,0.94501769]
[1746742097938,0.730484,102620.0,102610.0,0.94501769]
[1746742098134,0.5356,102620.0,102610.0,0.94501769]
[1746742100338,0.730484,102620.0,102610.0,0.48025769]
[1746742100533,1.091284,102620.0,102610.0,0.20605769]
[1746742100729,0.730484,102620.0,102610.0,0.30977769]
[1746742100930,1.091284,102620.0,102610.0,0.30977769]
[1746742101142,1.091284,102620.0,102610.0,0.20605769]
[1746742101341,1.2471251,102620.0,102610.0,0.01115469]
[1746742101543,1.2571251,102620.0,102610.0,0.01115469]
[1746742102139,1.4251251,102620.0,102610.0,0.01115469]
[1746742102437,1.4251251,102620.0,102610.0,0.20605769]
[1746742102641,1.269284,102620.0,102610.0,0.20605769]
[1746742102838,1.0744,102620.0,102610.0,0.20605769]
[1746742103142,0.5456,102620.0,102610.0,0.63409879]
[1746742103330,0.5456,102620.0,102610.0,0.48825769]
[1746742104039,0.740484,102620.0,102610.0,0.48825769]
[1746742104744,0.5456,102620.0,102610.0,0.48825769]
[1746742104945,0.5456,102620.0,102610.0,0.84905769]
[1746742105739,0.5456,102620.0,102610.0,0.48825769]
[1746742105945,0.5456,102620.0,102610.0,0.84905769]
[1746742107644,0.740484,102620.0,102610.0,0.84905769]
[1746742107945,0.5456,102620.0,102610.0,0.84905769]
[1746742109342,0.742914,102620.0,102610.0,0.84905769]
[1746742109848,0.741914,102620.0,102610.0,0.84605769]
[1746742110048,0.743914,102620.0,102610.0,0.84705769]
[1746742110548,0.54803,102620.0,102610.0,0.84205769]
[1746742110748,0.742914,102620.0,102610.0,0.84205769]
[1746742110948,0.742914,102620.0,102610.0,0.19905769]
[1746742111146,0.83980777,102620.0,102610.0,0.19905769]
[1746742111450,1.20060777,102620.0,102610.0,0.19905769]
[1746742111649,1.20060777,102620.0,102610.0,0.30249769]
[1746742111850,1.34644887,102620.0,102610.0,0.30249769]
[1746742112147,1.34644887,102620.0,102610.0,0.00415469]
[1746742112346,1.20644887,102620.0,102610.0,0.00415469]
[1746742112547,1.34644887,102620.0,102610.0,0.19905769]
[1746742113050,1.20060777,102620.0,102610.0,0.19905769]
[1746742113239,1.20060777,102620.0,102610.0,0.46535769]
[1746742113749,1.00572377,102620.0,102610.0,0.46535769]
[1746742114346,0.64492377,102620.0,102610.0,0.46535769]
[1746742114863,0.83980777,102620.0,102610.0,0.46535769]
[1746742115846,0.83980777,102620.0,102610.0,0.30237769]
[1746742116046,1.34644887,102620.0,102610.0,0.10747469]
[1746742116251,1.34644887,102620.0,102610.0,0.00415469]
[1746742116450,1.34644887,102620.0,102610.0,0.19905769]
[1746742116651,1.20060777,102620.0,102610.0,0.19905769]
[1746742116847,1.00572377,102620.0,102610.0,0.19905769]
[1746742117052,0.83980777,102620.0,102610.0,0.82705769]
[1746742117753,1.34644887,102620.0,102610.0,0.00415469]
[1746742117955,1.34644887,102620.0,102610.0,0.19905769]
[1746742118155,1.20060777,102620.0,102610.0,0.19905769]
[1746742118346,1.34644887,102620.0,102610.0,0.19905769]
[1746742119051,1.20060777,102620.0,102610.0,0.19905769]
[1746742119252,1.34644887,102620.0,102610.0,0.19905769]
[1746742122947,1.20060777,102620.0,102610.0,0.46405769]
[1746742123150,1.35644887,102620.0,102610.0,0.33355769]
[1746742123454,1.21060777,102620.0,102610.0,0.33355769]
[1746742124146,1.113714,102620.0,102610.0,0.46775769]
[1746742125662,1.2595551,102620.0,102610.0,0.33355769]
[1746742126358,1.113714,102620.0,102610.0,0.33355769]
[1746742126559,1.113714,102620.0,102610.0,0.46765769]
[1746742128960,1.113714,102620.0,102610.0,0.19905769]
[1746742129161,1.2595551,102620.0,102610.0,0.00415469]
[1746742129462,1.2595551,102620.0,102610.0,0.19905769]
[1746742129949,1.2595551,102620.0,102610.0,0.00415469]
[1746742130759,1.47759322,102620.0,102610.0,0.00415469]
[1746742131959,1.57504523,102620.0,102610.0,0.00415469]
[1746742132159,1.64559322,102620.0,102610.0,0.00415469]
[1746742132567,1.64559322,102620.0,102610.0,0.19905769]
[1746742133159,1.64559322,102620.0,102610.0,0.00415469]
[1746742134457,1.74304523,102620.0,102610.0,0.00415469]
[1746742135361,1.67190436,102620.0,102610.0,0.00415469]
[1746742135762,0.194903,102610.0,102600.0,0.10097465]
[1746742136063,1.1161441,102610.0,102600.0,0.10097465]
[1746742136266,1.2841441,102610.0,102600.0,0.10097465]
[1746742136863,1.2851441,102610.0,102600.0,0.10397465]
[1746742137166,1.2861441,102610.0,102600.0,0.10497465]
[1746742138269,1.2851441,102610.0,102600.0,0.10197465]
[1746742138456,1.2871441,102610.0,102600.0,0.10297465]
[1746742138860,1.29870715,102610.0,102600.0,0.10297465]
[1746742139061,1.15586605,102610.0,102600.0,0.29689665]
[1746742139469,1.56977285,102610.0,102600.0,0.10197465]
[1746742139768,0.194941,102590.0,102580.0,0.15658814]
[1746742139970,0.344941,102590.0,102580.0,0.71953424]
[1746742140263,0.344941,102590.0,102580.0,0.86537534]
[1746742140467,0.837241,102590.0,102580.0,0.86537534]
[1746742140669,0.837241,102590.0,102580.0,0.96813534]
[1746742140967,0.2815,102590.0,102580.0,0.96813534]
[1746742141161,0.476441,102590.0,102580.0,0.96813534]
[1746742141771,0.477441,102590.0,102580.0,0.97113534]
[1746742141971,0.971941,102590.0,102580.0,0.67907774]
[1746742142271,0.972941,102590.0,102580.0,0.68007774]
[1746742144566,0.19496,102580.0,102570.0,0.00097493]
[1746742144773,1.2400011,102580.0,102570.0,0.00097493]
[1746742145765,1.2420011,102580.0,102570.0,0.00897493]
[1746742146269,0.195017,102550.0,102540.0,0.34654097]
[1746742146472,0.195017,102550.0,102540.0,0.75344097]
[1746742146473,0.705817,102550.0,102540.0,0.75344097]
[1746742146667,0.9807581,102550.0,102540.0,0.75344097]
[1746742146860,0.2791,102550.0,102540.0,0.6131831]
[1746742147065,0.6399,102550.0,102540.0,0.6131831]
[1746742147265,0.9807581,102550.0,102540.0,0.6131831]
[1746742147770,0.151,102550.0,102540.0,0.6131831]
[1746742148361,0.151,102550.0,102540.0,0.7157431]
[1746742148568,0.152,102550.0,102540.0,0.7157431]
[1746742149467,0.151,102550.0,102540.0,0.7157431]
[1746742149671,0.152,102550.0,102540.0,0.7157431]
[1746742150273,0.152,102550.0,102540.0,1.0765431]
[1746742150465,0.152,102550.0,102540.0,0.7157431]
[1746742150666,0.152,102550.0,102540.0,1.0765431]
[1746742150866,0.152,102550.0,102540.0,0.7157431]
[1746742151467,0.152,102550.0,102540.0,1.0765431]
[1746742151875,0.347017,102550.0,102540.0,0.7157431]
[1746742152370,0.482617,102550.0,102540.0,0.7156631]
[1746742152566,0.482617,102550.0,102540.0,0.6131831]
[1746742153464,0.482617,102550.0,102540.0,0.7156631]
[1746742154270,0.2876,102550.0,102540.0,0.7156631]
[1746742154466,0.002,102550.0,102540.0,1.7156653]
[1746742154675,0.152,102550.0,102540.0,2.0856653]
[1746742154867,0.142,102550.0,102540.0,1.4231831]
[1746742155172,0.142,102550.0,102540.0,1.8256653]
[1746742155374,0.22,102570.0,102560.0,0.194998]
[1746742155573,0.19,102590.0,102580.0,0.2437]
[1746742155764,0.14,102590.0,102580.0,0.9502162]
[1746742155969,0.1913,102610.0,102600.0,0.194922]
[1746742156180,0.1513,102610.0,102600.0,0.4435231]
[1746742156481,0.1413,102610.0,102600.0,1.2267242]
[1746742156664,0.1413,102610.0,102600.0,1.64071073]
[1746742156864,0.1413,102610.0,102600.0,1.49486963]
[1746742157081,0.1413,102610.0,102600.0,1.64071073]
[1746742157372,0.1413,102610.0,102600.0,1.49486963]
[1746742157573,0.1413,102610.0,102600.0,1.64071073]
[1746742158066,0.0013,102610.0,102600.0,1.04392853]
[1746742158273,0.454803,102610.0,102600.0,0.47800853]
[1746742158477,1.1301441,102610.0,102600.0,0.48820653]
[1746742158679,1.2719741,102610.0,102600.0,0.68312853]